bitfinex/quotes_SOLUSD_20240705
["timestamp","ask_amount","ask_price","bid_price","bid_amount"]
[1720182989588,7.6476,130.76,130.64,100.0]
[1720182989896,7.6486,130.75,130.63,0.17]
[1720182990073,54.37,130.74,130.61,100.0]
[1720182990276,54.37,130.74,130.54,7.676]
[1720182990277,0.17,130.73,130.57,100.0]
[1720182990483,0.17,130.73,130.52,259.9]
[1720182990484,54.37,130.7,130.56,100.0]
[1720182990687,7.6529,130.67,130.56,100.0]
[1720182990890,20.17,130.66,130.56,100.0]
[1720182991087,54.37,130.7,130.56,100.0]
[1720182991294,0.17,130.69,130.58,100.0]
[1720182991578,0.17,130.69,130.56,22.76]
[1720182991780,20.17,130.69,130.55,100.0]
[1720182991983,7.6523,130.68,130.53,200.0]
[1720182992193,20.17,130.67,130.55,100.0]
[1720182992395,0.17,130.69,130.56,122.76]
[1720182992700,0.17,130.69,130.57,1.53066144]
[1720182992903,0.17,130.69,130.58,100.0]
[1720182993209,54.37,130.7,130.6,100.0]
[1720182993381,7.6499,130.72,130.6,100.0]
[1720182993705,15.0,130.73,130.54,200.0]
[1720182993876,54.37,130.69,130.57,100.0]
[1720182994073,7.6586,130.58,130.48,387.3]
[1720182994280,22.0569,130.68,130.44,100.0]
[1720182994281,0.17,130.57,130.44,100.0]
[1720182994584,54.37,130.6,130.48,100.0]
[1720182994585,54.37,130.56,130.48,100.0]
[1720182995179,54.37,130.56,130.46,100.0]
[1720182995382,54.37,130.56,130.46,122.76]
[1720182995581,69.37,130.62,130.48,122.76]
[1720182995582,7.6567,130.61,130.48,122.76]
[1720182995774,20.17,130.6,130.48,122.76]
[1720182995974,7.6581,130.58,130.44,100.0]
[1720182996200,54.37,130.57,130.46,100.0]
[1720182996406,7.66,130.55,130.43,100.0]
[1720182996586,54.37,130.53,130.43,100.0]
[1720182996781,54.37,130.53,130.41,100.0]
[1720182996992,0.17,130.52,130.43,100.0]
[1720182997702,54.37,130.53,130.43,487.3]
[1720182997883,20.0,130.56,130.47,100.0]
[1720182998414,20.0,130.56,130.45,100.0]
[1720182998700,20.0,130.56,130.43,387.3]
[1720182998701,20.0,130.56,130.46,0.17]
[1720182999605,20.0,130.56,130.43,387.3]
[1720182999807,54.37,130.53,130.44,100.0]
[1720182999997,54.37,130.53,130.43,387.3]
[1720183000590,54.37,130.53,130.43,487.3]
[1720183001096,125.9412,130.69,130.51,100.0]
[1720183001401,125.9412,130.69,130.52,100.0]
[1720183001402,54.37,130.62,130.52,100.0]
[1720183001702,54.37,130.62,130.53,100.0]
[1720183001882,54.37,130.62,130.54,0.17]
[1720183002084,54.37,130.62,130.53,100.0]
[1720183002483,62.0259,130.62,130.52,0.17]
[1720183002695,54.37,130.62,130.52,20.17]
[1720183002894,54.37,130.62,130.54,100.0]
[1720183003300,54.37,130.62,130.55,0.17]
[1720183003601,25.98667799,130.68,130.54,100.0]
[1720183003801,54.37,130.65,130.52,407.47]
[1720183004111,62.0245,130.65,130.52,607.47]
[1720183004308,62.0241,130.65,130.52,607.47]
[1720183004493,54.37,130.65,130.52,607.47]
[1720183004803,7.6567,130.61,130.52,387.3]
[1720183005010,54.37,130.61,130.5,100.0]
[1720183005201,0.92787452,130.67,130.57,100.0]
[1720183005402,0.92787452,130.67,130.59,100.0]
[1720183005789,0.92787452,130.67,130.54,100.0]
[1720183005988,8.58097452,130.67,130.54,100.0]
[1720183006196,7.6546,130.65,130.54,100.0]
[1720183006408,54.37,130.68,130.55,0.17]
[1720183006609,7.6553,130.63,130.53,100.0]
[1720183006812,7.6541,130.65,130.53,200.0]
[1720183006995,20.0,130.64,130.53,200.0]
[1720183007199,20.0,130.64,130.53,222.76]
[1720183007509,20.0,130.65,130.56,100.0]
[1720183007835,20.0,130.65,130.55,0.17]
[1720183008191,0.17,130.66,130.56,22.76]
[1720183008390,80.3337,130.69,130.57,0.17]
[1720183008586,72.6816,130.69,130.54,100.0]
[1720183008804,1.09787452,130.68,130.54,100.0]
[1720183009412,0.92787452,130.68,130.58,100.0]
[1720183009604,0.92787452,130.68,130.55,100.0]
[1720183009806,0.92787452,130.68,130.6,100.0]
[1720183010107,0.92787452,130.68,130.54,20.0]
[1720183010108,52.1416,130.75,130.58,100.0]
[1720183010309,54.37,130.72,130.59,0.17]
[1720183010515,7.6505,130.71,130.59,0.17]
[1720183010817,7.6517,130.69,130.58,100.0]
[1720183010989,7.6523,130.68,130.58,100.0]
[1720183011191,7.6529,130.67,130.56,100.0]
[1720183011391,62.022,130.69,130.58,100.0]
[1720183011590,7.6528,130.68,130.57,0.17]
[1720183011796,20.17,130.67,130.58,100.0]
[1720183012003,20.0,130.66,130.58,123.0]
[1720183012210,20.0,130.68,130.58,100.0]
[1720183012605,20.0,130.68,130.54,387.3]
[1720183012606,7.6541,130.65,130.54,387.3]
[1720183012808,20.0,130.64,130.54,387.3]
[1720183012991,20.0,130.64,130.55,100.0]
[1720183013192,20.0,130.64,130.54,387.3]
[1720183013407,20.0,130.68,130.54,387.3]
[1720183013605,7.6547,130.64,130.54,387.3]
[1720183013799,0.17,130.65,130.54,387.3]
[1720183014112,7.8236,130.66,130.54,387.3]
[1720183014315,20.0,130.65,130.54,387.3]
[1720183014512,27.6541,130.65,130.54,387.3]
[1720183014713,20.0,130.65,130.54,387.3]
[1720183015016,20.0,130.65,130.5,100.0]
[1720183015216,7.657,130.6,130.49,387.3]
[1720183015408,20.17,130.59,130.49,387.3]
[1720183015614,20.17,130.59,130.48,100.0]
[1720183015615,27.8277,130.59,130.48,487.3]
[1720183015909,27.8276,130.59,130.48,487.3]
[1720183016216,7.6581,130.58,130.48,387.3]
[1720183016405,27.8289,130.57,130.45,387.3]
[1720183016606,7.6602,130.55,130.45,387.3]
[1720183016803,20.17,130.54,130.45,387.3]
[1720183017843,7.8306,130.54,130.45,387.3]
[1720183018119,20.0,130.53,130.45,387.3]
[1720183018318,20.0,130.53,130.44,100.0]
[1720183018523,0.17,130.56,130.44,123.0]
[1720183018699,7.6599,130.55,130.44,100.0]
[1720183018899,20.0,130.54,130.45,0.17]
[1720183019219,7.6614,130.53,130.43,100.0]
[1720183019423,20.0,130.52,130.41,100.0]
[1720183019724,27.6617,130.52,130.41,100.0]
[1720183019924,0.17,130.51,130.38,100.0]
[1720183020107,0.17,130.51,130.37,487.3]
[1720183020108,7.6636,130.49,130.37,100.0]
[1720183020306,7.6636,130.49,130.37,100.9411654]
[1720183020307,7.6652,130.46,130.37,100.9411654]
[1720183020619,0.17,130.48,130.37,100.9411654]
[1720183020917,27.8345,130.48,130.37,100.9411654]
[1720183021129,20.17,130.48,130.37,100.9411654]
[1720183021305,27.8341,130.48,130.37,100.9411654]
[1720183021721,7.6646,130.47,130.37,100.9411654]
[1720183021906,20.0,130.46,130.37,23.9411654]
[1720183022104,20.17,130.48,130.38,0.17]
[1720183022605,20.17,130.48,130.37,0.9411654]
[1720183022817,7.6655,130.46,130.37,0.9411654]
[1720183023025,20.17,130.45,130.37,0.9411654]
[1720183024027,20.0,130.44,130.37,0.9411654]
[1720183024225,7.6682,130.41,130.37,0.9411654]
[1720183024409,20.17,130.4,130.25,100.0]
[1720183024603,20.17,130.4,130.25,487.3]
[1720183024806,7.6715,130.36,130.25,487.3]
[1720183025014,20.17,130.35,130.25,487.3]
[1720183025432,27.8416,130.35,130.25,487.3]
[1720183025802,54.37,130.41,130.29,100.0]
[1720183026028,27.8391,130.4,130.27,100.0]
[1720183026228,108.74,130.48,130.3,100.0]
[1720183026530,54.37,130.44,130.3,100.0]
[1720183026708,7.6693,130.39,130.27,100.0]
[1720183026905,7.6705,130.37,130.26,100.0]
[1720183027126,54.37,130.4,130.25,487.3]
[1720183027337,69.37,130.4,130.25,487.3]
[1720183027516,0.17,130.39,130.27,100.0]
[1720183027846,7.6704,130.37,130.25,487.3]
[1720183028127,20.17,130.36,130.25,487.3]
[1720183028332,0.17,130.37,130.25,387.3]
[1720183028523,0.17,130.36,130.27,100.0]
[1720183028831,0.92787452,130.39,130.29,200.0]
[1720183029131,62.0369,130.44,130.3,100.0]
[1720183029332,55.29787452,130.44,130.31,100.0]
[1720183029539,0.92787452,130.44,130.33,200.0]
[1720183029724,0.92787452,130.44,130.38,100.0]
[1720183029934,19.2038,130.53,130.39,0.17]
[1720183029935,7.6618,130.52,130.39,0.17]
[1720183030135,26.865,130.53,130.4,100.0]
[1720183030322,19.2038,130.53,130.41,100.17]
[1720183030526,6.9959,130.54,130.43,200.0]
[1720183030839,6.9959,130.54,130.43,100.0]
[1720183031140,6.9959,130.54,130.45,100.0]
[1720183031311,6.9959,130.54,130.44,0.17]
[1720183031738,7.6617,130.52,130.39,200.0]
[1720183032037,6.9959,130.54,130.4,0.17]
[1720183032334,7.663,130.5,130.39,200.0]
[1720183032540,20.92787452,130.53,130.41,100.0]
[1720183032861,20.92787452,130.53,130.39,100.0]
[1720183032862,7.6623,130.51,130.39,100.0]
[1720183033043,20.0,130.5,130.39,100.0]
[1720183033547,7.6633,130.5,130.39,100.0]
[1720183033728,20.0,130.49,130.39,200.0]
[1720183033913,0.17,130.49,130.39,100.0]
[1720183034118,0.17,130.49,130.39,200.0]
[1720183034344,20.0,130.49,130.39,223.0]
[1720183034525,20.0,130.5,130.41,100.0]
[1720183034726,0.92787452,130.53,130.43,100.0]
[1720183035112,0.92787452,130.53,130.46,100.0]
[1720183035623,6.9959,130.54,130.45,0.17]
[1720183035841,6.9959,130.54,130.44,100.17]
[1720183036024,6.9959,130.54,130.44,0.17]
[1720183036232,14.6568,130.54,130.43,387.3]
[1720183036432,6.9959,130.54,130.43,387.3]
[1720183036740,7.6626,130.51,130.43,387.3]
[1720183037148,7.8329,130.5,130.43,387.3]
[1720183037320,7.8329,130.5,130.35,100.0]
[1720183037321,0.17,130.5,130.36,100.0]
[1720183037516,0.17,130.5,130.35,387.3]
[1720183037517,7.6652,130.46,130.35,387.3]
[1720183037744,20.17,130.45,130.35,387.3]
[1720183037946,20.17,130.45,130.33,100.0]
[1720183037947,27.8358,130.45,130.33,100.0]
[1720183038236,20.17,130.45,130.33,100.0]
[1720183038822,20.17,130.45,130.31,200.0]
[1720183039019,20.17,130.45,130.31,123.0]
[1720183039331,20.17,130.45,130.33,100.0]
[1720183039843,27.8359,130.45,130.33,100.0]
[1720183040049,20.17,130.45,130.35,100.0]
[1720183040252,20.0,130.45,130.34,100.0]
[1720183040424,7.6668,130.44,130.33,100.0]
[1720183040626,54.37,130.46,130.33,100.0]
[1720183040839,54.37,130.46,130.31,387.3]
[1720183041049,40.92701805,130.45,130.31,387.3]
[1720183041252,54.37,130.42,130.27,100.0]
[1720183041547,20.0,130.41,130.27,100.0]
[1720183041749,0.17,130.4,130.27,100.0]
[1720183042346,7.6709,130.37,130.27,100.0]
[1720183042550,20.0,130.36,130.27,100.0]
[1720183043051,0.17,130.35,130.26,387.3]
[1720183043237,20.0,130.37,130.26,387.3]
[1720183043436,0.17,130.35,130.26,387.3]
[1720183043639,7.6717,130.35,130.26,387.3]
[1720183043824,20.17,130.34,130.26,387.3]
[1720183044136,7.6729,130.33,130.26,387.3]
[1720183044457,20.17,130.32,130.23,0.9345215]
[1720183044623,7.6747,130.3,130.23,0.9345215]
[1720183044823,20.0,130.29,130.23,0.9345215]
[1720183045232,0.17,130.3,130.23,0.9345215]
[1720183045426,0.17,130.29,130.23,0.9345215]
[1720183045822,7.6765,130.27,130.23,0.9345215]
[1720183046023,7.678,130.25,130.15,100.0]
[1720183046229,20.0,130.24,130.15,100.0]
[1720183046526,20.0,130.26,130.16,123.0]
[1720183046743,20.0,130.26,130.16,100.0]
[1720183046959,20.0,130.26,130.14,100.0]
[1720183046960,7.6785,130.24,130.14,100.0]
[1720183047253,0.17,130.25,130.09,388.2345215]
[1720183047436,7.6803,130.21,130.09,0.9345215]
[1720183047635,20.17,130.2,130.09,0.9345215]
[1720183048262,7.6812,130.19,130.09,0.9345215]
[1720183048559,20.17,130.18,130.09,0.9345215]
[1720183048854,0.17,130.17,130.09,0.9345215]
[1720183049247,7.8522,130.17,130.09,0.9345215]
[1720183049441,27.6828,130.16,130.09,0.9345215]
[1720183050037,20.0,130.16,130.09,0.9345215]
[1720183050229,0.17,130.15,130.09,0.9345215]
[1720183050551,0.17,130.15,130.01,100.0]
[1720183050849,7.6872,130.09,130.01,100.0]
[1720183051151,7.6865,130.1,129.98,487.34558722]
[1720183051450,20.17,130.09,129.98,487.34558722]
[1720183051659,7.6886,130.07,129.98,487.34558722]
[1720183051852,7.6889,130.06,129.98,387.34558722]
[1720183052055,20.17,130.09,129.98,0.04558722]
[1720183052056,20.0,130.05,129.98,0.04558722]
[1720183052232,7.6888,130.06,129.98,0.04558722]
[1720183052428,20.0,130.05,129.98,0.04558722]
[1720183052631,0.17,130.04,129.98,0.04558722]
[1720183052828,54.54,130.04,129.98,0.04558722]
[1720183053032,7.6914,130.02,129.98,0.04558722]
[1720183053336,20.17,130.01,129.98,0.04558722]
[1720183053649,20.0,130.03,129.98,0.04558722]
[1720183053851,0.17,130.02,129.98,0.04558722]
[1720183054060,20.17,130.04,129.98,0.04558722]
[1720183054550,7.6912,130.02,129.98,0.04558722]
[1720183054742,20.17,130.01,129.98,0.04558722]
[1720183054934,27.8617,130.01,129.98,0.04558722]
[1720183055129,54.37,130.04,129.98,0.04558722]
[1720183055350,27.861,130.03,129.98,0.04558722]
[1720183055655,20.17,130.03,129.98,0.04558722]
[1720183055855,27.8606,130.03,129.98,0.04558722]
[1720183056063,7.6914,130.02,129.98,0.04558722]
[1720183056229,20.17,130.01,129.98,0.04558722]
[1720183056950,0.17,130.01,129.98,0.04558722]
[1720183057250,7.6928,129.99,129.98,0.04558722]
[1720183057451,0.17,129.99,129.98,0.04558722]
[1720183057655,20.0,130.03,129.98,0.04558722]
[1720183057867,54.37,130.04,129.98,0.04558722]
[1720183058039,54.37,130.13,130.0,99.95]
[1720183058249,54.37,130.13,129.98,0.04558722]
[1720183058541,54.37,130.13,129.99,100.0]
[1720183058754,7.686,130.11,129.98,0.04558722]
[1720183058956,7.6864,130.1,129.99,100.0]
[1720183059161,54.37,130.13,129.99,100.0]
[1720183059484,54.37,130.13,130.02,100.0]
[1720183059659,54.37,130.13,130.03,0.17]
[1720183060569,54.37,130.13,129.98,0.04558722]
[1720183060746,7.6902,130.04,129.98,0.04558722]
[1720183060942,7.6906,130.03,129.98,0.04558722]
[1720183061254,7.6915,130.02,129.98,0.04558722]
[1720183061565,54.37,130.04,129.98,0.04558722]
[1720183062077,62.03353577,130.13,129.98,0.04558722]
[1720183062078,7.6886,130.07,129.98,0.04558722]
[1720183062242,20.0,130.06,129.98,0.04558722]
[1720183062888,27.6882,130.07,129.98,0.04558722]
[1720183063066,20.0,130.07,129.98,0.04558722]
[1720183063255,54.37,130.13,129.98,0.04558722]
[1720183063458,7.687,130.09,129.98,0.04558722]
[1720183063657,7.6859,130.11,129.98,100.04558722]
[1720183063969,7.6865,130.1,129.98,100.04558722]
[1720183064149,20.97214533,130.12,129.98,0.04558722]
[1720183064345,7.6882,130.07,129.98,100.04558722]
[1720183064673,1.75824533,130.11,129.98,0.04558722]
[1720183064973,54.37,130.08,129.98,0.04558722]
[1720183065172,54.37,130.04,129.98,0.04558722]
[1720183065472,0.17,130.03,129.98,0.04558722]
[1720183065664,27.8606,130.03,129.98,0.04558722]
[1720183065848,20.0,130.03,129.98,0.04558722]
[1720183066460,0.17,130.02,129.98,0.04558722]
[1720183066645,7.6928,129.99,129.98,0.04558722]
[1720183066842,27.8628,129.99,129.98,0.04558722]
[1720183067071,7.694,129.97,129.96,0.7896617]
[1720183067250,62.234,129.97,129.96,0.7896617]
[1720183067461,74.54,129.97,129.84,100.0]
[1720183067775,20.17,129.96,129.84,100.0]
[1720183068142,27.8648,129.96,129.84,100.0]
[1720183068372,20.17,129.96,129.83,100.0]
[1720183068669,27.8652,129.96,129.84,100.0]
[1720183068975,20.0,129.96,129.83,100.0]
[1720183069148,20.0,129.96,129.82,100.0]
[1720183069669,20.0,129.96,129.84,100.0]
[1720183069866,0.17,129.95,129.82,23.0]
[1720183070163,7.8658,129.95,129.83,100.0]
[1720183070385,20.0,129.94,129.85,100.0]
[1720183070582,7.696,129.94,129.8,100.0]
[1720183070869,0.17,129.93,129.81,23.0]
[1720183071071,19.4087,129.95,129.8,100.0]
[1720183071375,20.0,129.94,129.8,100.0]
[1720183071683,7.6974,129.92,129.8,100.0]
[1720183071847,7.6974,129.92,129.8,123.0]
[1720183071848,20.0,129.91,129.8,123.0]
[1720183072371,27.6981,129.91,129.79,1.1407854]
[1720183072548,7.6988,129.89,129.79,1.1407854]
[1720183072753,0.17,129.88,129.79,1.1407854]
[1720183073478,7.8695,129.88,129.79,1.1407854]
[1720183073651,0.17,129.88,129.79,1.1407854]
[1720183073852,20.0,129.9,129.8,100.0]
[1720183074068,54.37,129.93,129.79,1.1407854]
[1720183074272,7.6977,129.91,129.79,1.1407854]
[1720183074573,27.6971,129.92,129.8,100.0]
[1720183074875,20.0,129.92,129.8,123.0]
[1720183075169,85.195084,129.99,129.8,123.0]
[1720183075170,85.195084,129.99,129.82,100.0]
[1720183075382,1.75824533,129.98,129.81,0.17]
[1720183075671,7.6959,129.94,129.82,100.0]
[1720183075879,7.6967,129.93,129.82,100.0]
[1720183076053,7.6956,129.95,129.82,100.0]
[1720183076256,7.6958,129.94,129.82,100.0]
[1720183076656,20.17,129.93,129.82,100.0]
[1720183076987,1.75824533,129.98,129.87,23.0]
[1720183077162,1.75824533,129.98,129.83,100.0]
[1720183077355,1.75824533,129.98,129.85,100.0]
[1720183077356,56.12824533,129.98,129.85,100.0]
[1720183077557,7.6954,129.95,129.83,100.0]
[1720183077906,7.6947,129.96,129.84,0.17]
[1720183078067,63.82174533,129.98,129.86,100.0]
[1720183078376,56.12824533,129.98,129.86,100.0]
[1720183078575,56.12824533,129.98,129.85,123.0]
[1720183078873,56.12824533,129.98,129.87,100.0]
[1720183079165,1.75824533,129.98,129.87,100.0]
[1720183079964,1.75824533,129.98,129.84,100.0]
[1720183080377,9.45174533,129.98,129.85,123.0]
[1720183080556,27.6944,129.97,129.83,200.0]
[1720183080751,7.6956,129.95,129.83,200.0]
[1720183080947,20.0,129.97,129.83,100.0]
[1720183081165,7.6966,129.93,129.83,100.0]
[1720183081371,7.866,129.94,129.83,100.0]
[1720183081554,20.0,129.93,129.81,100.0]
[1720183081766,20.0,129.93,129.84,100.0]
[1720183081961,54.37,129.98,129.82,100.0]
[1720183081962,20.0,129.95,129.82,100.0]
[1720183082168,7.6929,129.99,129.86,100.0]
[1720183082364,7.1398,130.01,129.88,123.0]
[1720183082554,7.6917,130.01,129.89,100.0]
[1720183082754,17.7507,130.04,129.91,100.0]
[1720183083084,7.691,130.03,129.89,123.0]
[1720183083382,7.6923,130.0,129.89,100.0]
[1720183083590,7.6932,129.99,129.88,0.17]
[1720183083878,17.7507,130.04,129.88,0.17]
[1720183084073,27.6906,130.03,129.91,100.0]
[1720183084592,20.0,130.03,129.93,100.0]
[1720183084764,27.6898,130.05,129.93,100.0]
[1720183084956,54.37,130.06,129.93,100.0]
[1720183085263,25.7276,130.12,129.97,123.0]
[1720183085467,18.0424,130.12,129.99,100.0]
[1720183085779,7.6858,130.11,129.98,0.17]
[1720183085955,7.6858,130.11,129.97,123.0]
[1720183085956,7.6864,130.1,129.97,100.0]
[1720183086283,54.37,130.13,130.02,100.0]
[1720183086464,54.37,130.13,129.97,107.5772]
[1720183086465,10.50987549,130.16,130.03,100.17]
[1720183086656,2.82677549,130.16,130.01,100.0]
[1720183086978,7.6847,130.13,129.99,23.0]
[1720183087167,7.6847,130.13,129.98,100.0]
[1720183087168,4.58502082,130.16,130.05,100.0]
[1720183087476,2.82677549,130.16,130.06,100.0]
[1720183087681,2.82677549,130.16,130.04,0.17]
[1720183087877,4.58502082,130.16,130.0,200.0]
[1720183088182,54.37,130.15,130.01,100.0]
[1720183088383,54.37,130.15,130.03,100.0]
[1720183088568,1.75824533,130.16,130.05,100.0]
[1720183088891,1.75824533,130.16,130.06,100.0]
[1720183089367,1.75824533,130.16,130.02,100.0]
[1720183089368,1.75824533,130.16,130.05,100.0]
[1720183089573,54.37,130.2,130.05,100.0]
[1720183089770,54.37,130.2,130.04,0.17]
[1720183089991,7.6844,130.14,130.01,100.0]
[1720183090185,20.0,130.13,129.97,26.7284]
[1720183090363,54.37,130.11,129.96,100.0]
[1720183090556,27.6864,130.1,129.96,100.0]
[1720183090758,0.17,130.09,129.94,200.0]
[1720183090973,0.17,130.09,129.99,100.0]
[1720183091185,20.0,130.1,129.99,100.0]
[1720183091375,54.37,130.15,130.03,100.0]
[1720183091555,7.6827,130.17,130.01,100.0]
[1720183091759,7.6817,130.18,130.05,100.0]
[1720183092058,0.92787452,130.18,130.07,100.0]
[1720183092462,54.37,130.2,130.07,100.0]
[1720183092761,54.37,130.2,130.09,100.0]
[1720183093470,54.37,130.23,130.08,0.17]
[1720183093674,54.37,130.23,130.07,100.0]
[1720183093675,7.6809,130.2,130.07,100.0]
[1720183094001,1.76241805,130.22,130.11,100.0]
[1720183094283,1.76241805,130.22,130.1,100.0]
[1720183094584,1.76241805,130.22,130.11,100.0]
[1720183094887,1.76241805,130.22,130.15,100.0]
[1720183095070,92.742,130.31,130.13,100.0]
[1720183095271,20.94991805,130.3,130.14,20.0]
[1720183095588,7.6758,130.28,130.15,100.0]
[1720183095890,9.43771805,130.29,130.15,100.0]
[1720183096063,9.43771805,130.29,130.14,20.0]
[1720183096064,1.76241805,130.29,130.14,20.17]
[1720183096258,1.76241805,130.29,130.17,100.0]
[1720183096569,7.6738,130.32,130.19,100.0]
[1720183096775,14.8325,130.33,130.21,100.0]
[1720183097087,7.6739,130.32,130.18,100.17]
[1720183097279,7.6739,130.32,130.19,20.0]
[1720183097473,9.43531805,130.33,130.19,20.0]
[1720183097678,7.6736,130.32,130.19,20.0]
[1720183097896,1.76241805,130.33,130.21,100.0]
[1720183098378,1.76241805,130.33,130.23,100.0]
[1720183098572,7.0146,130.38,130.22,120.17]
[1720183098573,7.0146,130.38,130.27,100.0]
[1720183098774,7.0146,130.38,130.24,100.0]
[1720183098775,7.0146,130.38,130.25,100.0]
[1720183098978,19.4448854,130.4,130.27,100.0]
[1720183099201,2.06865992,130.4,130.29,100.0]
[1720183099494,1.1407854,130.4,130.29,100.0]
[1720183099695,1.1407854,130.4,130.31,100.0]
[1720183099870,1.1407854,130.4,130.26,120.0]
[1720183100179,54.37,130.39,130.22,100.0]
[1720183100378,54.37,130.39,130.21,100.0]
[1720183100379,7.6729,130.33,130.21,100.0]
[1720183100583,19.1798,130.35,130.21,100.0]
[1720183100584,20.0,130.32,130.23,100.0]
[1720183100772,20.0,130.34,130.23,100.0]
[1720183100978,20.0,130.37,130.25,100.0]
[1720183101385,7.6697,130.39,130.25,100.0]
[1720183101584,21.1407854,130.4,130.27,100.0]
[1720183101585,1.1407854,130.4,130.27,100.0]
[1720183101791,1.1407854,130.4,130.28,0.17]
[1720183101985,1.1407854,130.4,130.27,200.0]
[1720183102202,1.1407854,130.4,130.29,200.0]
[1720183102380,1.1407854,130.4,130.32,100.0]
[1720183102580,1.1407854,130.4,130.31,100.0]
[1720183102780,1.1407854,130.4,130.32,100.0]
[1720183103088,1.1407854,130.4,130.3,100.17]
[1720183103277,7.6699,130.38,130.25,100.0]
[1720183103482,1.1407854,130.4,130.29,100.0]
[1720183103784,21.1407854,130.4,130.25,100.0]
[1720183103992,7.6709,130.37,130.25,100.0]
[1720183104299,7.6721,130.35,130.24,100.0]
[1720183104485,20.0,130.34,130.24,100.0]
[1720183104684,20.0,130.34,130.23,100.0]
[1720183104891,20.0,130.34,130.22,100.0]
[1720183104892,7.8428,130.33,130.22,100.0]
[1720183105092,20.0,130.32,130.2,100.0]
[1720183105303,0.17,130.31,130.21,100.0]
[1720183105574,7.843,130.33,130.21,100.0]
[1720183105775,20.0,130.32,130.22,100.0]
[1720183105969,0.17,130.33,130.22,100.0]
[1720183106186,0.17,130.33,130.2,200.0]
[1720183106395,0.17,130.33,130.22,200.0]
[1720183106794,0.17,130.33,130.22,100.0]
[1720183107096,7.6735,130.32,130.2,200.0]
[1720183107299,20.17,130.31,130.2,100.0]
[1720183107499,7.6765,130.27,130.16,100.0]
[1720183107702,0.17,130.28,130.15,100.0]
[1720183107873,7.6747,130.3,130.17,100.0]
[1720183108075,20.17,130.29,130.17,100.0]
[1720183108586,7.6759,130.28,130.16,100.0]
[1720183108794,20.17,130.27,130.16,100.0]
[1720183109079,20.17,130.27,130.17,100.0]
[1720183109407,20.17,130.27,130.15,200.0]
[1720183109577,7.8465,130.27,130.15,200.0]
[1720183109774,20.0,130.26,130.15,200.0]
[1720183110080,20.17,130.27,130.18,100.0]
[1720183110290,20.0,130.27,130.18,100.0]
[1720183110504,20.0,130.27,130.17,100.0]
[1720183110680,0.17,130.28,130.16,30.0]